bitfinex/quotes_BTCUSD_20220105
["timestamp","ask_amount","ask_price","bid_price","bid_amount"]
[1641381456708,0.50405,46657.0,46652.0,0.71896]
[1641381456908,0.053611,46655.0,46652.0,0.71896]
[1641381457108,0.6707121,46654.0,46652.0,0.71896]
[1641381457310,0.36062423,46653.0,46652.0,0.71896]
[1641381457510,0.76467423,46653.0,46652.0,0.71896]
[1641381457710,0.86467423,46653.0,46652.0,0.71896]
[1641381458110,0.557659,46653.0,46652.0,0.71896]
[1641381458509,0.84149247,46653.0,46652.0,0.71896]
[1641381458810,0.85349247,46653.0,46652.0,0.71896]
[1641381460059,0.84149247,46653.0,46652.0,0.71896]
[1641381460257,0.83841308,46653.0,46652.0,0.71896]
[1641381460462,0.557659,46653.0,46652.0,0.71896]
[1641381460658,0.84254667,46653.0,46652.0,0.71896]
[1641381460858,0.569659,46653.0,46652.0,0.71896]
[1641381461664,0.469659,46653.0,46652.0,0.71896]
[1641381462065,0.457659,46653.0,46652.0,0.71896]
[1641381462663,0.75675787,46653.0,46652.0,0.71896]
[1641381462863,0.86875787,46653.0,46652.0,0.71896]
[1641381464105,0.85675787,46653.0,46652.0,0.71896]
[1641381464704,0.83976496,46653.0,46652.0,0.71896]
[1641381465004,0.85176496,46653.0,46652.0,0.71896]
[1641381465204,0.569659,46653.0,46652.0,0.71896]
[1641381465405,0.85074415,46653.0,46652.0,0.71896]
[1641381466004,0.83874415,46653.0,46652.0,0.71896]
[1641381466805,0.85074415,46653.0,46652.0,0.71896]
[1641381467856,0.469659,46653.0,46652.0,0.71896]
[1641381468054,0.103609,46653.0,46652.0,0.71896]
[1641381468859,0.062,46653.0,46652.0,0.71896]
[1641381469060,0.012,46653.0,46652.0,0.71896]
[1641381470061,0.053601,46656.0,46652.0,0.71896]
[1641381470262,0.70787712,46657.0,46652.0,0.71896]
[1641381470765,0.054,46657.0,46652.0,0.71896]
[1641381471009,0.2807988,46655.0,46653.0,0.05359674]
[1641381471211,0.2807988,46655.0,46653.0,0.16079022]
[1641381471408,2.32977934,46654.0,46653.0,0.16079022]
[1641381471609,2.68382934,46654.0,46653.0,0.10719348]
[1641381471809,2.32977934,46654.0,46653.0,0.10719348]
[1641381472208,2.42977934,46654.0,46653.0,0.10719348]
[1641381472409,2.78382934,46654.0,46652.0,0.71896]
[1641381472609,0.40405,46653.0,46652.0,0.71896]
[1641381473008,0.50405,46653.0,46652.0,0.71896]
[1641381473208,0.7932788,46653.0,46652.0,0.71896]
[1641381474210,0.8468878,46653.0,46652.0,0.71896]
[1641381474859,0.8588878,46653.0,46652.0,0.71896]
[1641381475255,0.569659,46653.0,46652.0,0.71896]
[1641381476458,0.85225105,46653.0,46652.0,0.71896]
[1641381476660,0.84025105,46653.0,46652.0,0.71896]
[1641381476859,0.85225105,46653.0,46652.0,0.71896]
[1641381477459,0.569659,46653.0,46652.0,0.71896]
[1641381478060,0.557659,46653.0,46652.0,0.71896]
[1641381478914,0.569659,46653.0,46652.0,0.71896]
[1641381480615,0.557659,46653.0,46652.0,0.71896]
[1641381480813,0.162,46653.0,46652.0,0.71896]
[1641381481218,0.012,46653.0,46652.0,0.71896]
[1641381482164,0.053604,46655.0,46652.0,0.71896]
[1641381482366,1.25743778,46659.0,46652.0,0.71896]
[1641381482565,0.35405,46658.0,46654.0,0.05359966]
[1641381482766,0.35405,46658.0,46652.0,0.71896]
[1641381482964,0.50405,46658.0,46652.0,0.71896]
[1641381483164,0.053603,46655.0,46652.0,0.71896]
[1641381485069,0.35405,46654.0,46652.0,0.71896]
[1641381485267,0.053608,46653.0,46652.0,0.71896]
[1641381485468,0.103608,46653.0,46652.0,0.71896]
[1641381486910,0.115608,46653.0,46652.0,0.71896]
[1641381487110,0.469658,46653.0,46652.0,0.71896]
[1641381487611,0.569658,46653.0,46652.0,0.71896]
[1641381488210,0.457658,46653.0,46652.0,0.71896]
[1641381488411,0.70787712,46655.0,46652.0,0.71896]
[1641381488811,0.034,46653.0,46652.0,0.71896]
[1641381490170,0.02563353,46659.0,46652.0,0.71896]
[1641381491074,0.02563353,46659.0,46655.0,0.053597]
[1641381491270,0.02563353,46659.0,46656.0,0.05359481]
[1641381491975,0.35405,46658.0,46652.0,0.71896]
[1641381492175,1.8552207,46657.0,46654.0,0.0536]
[1641381492374,1.9088227,46657.0,46652.0,0.71896]
[1641381493611,0.02687382,46659.0,46654.0,0.053603]
[1641381493810,0.35405,46658.0,46653.0,0.10719887]
[1641381494010,0.08047382,46659.0,46653.0,0.10719887]
[1641381494612,0.02687382,46659.0,46655.0,0.053599]
[1641381494813,0.02687382,46659.0,46652.0,0.71896]
[1641381494814,0.053603,46657.0,46652.0,0.71896]
[1641381495013,0.35405,46656.0,46652.0,0.71896]
[1641381495211,3.05399827,46656.0,46652.0,0.71896]
[1641381495412,3.15399827,46656.0,46652.0,0.71896]
[1641381496012,0.053609,46654.0,46652.0,0.71896]
[1641381496215,0.35405,46653.0,46652.0,0.71896]
[1641381496413,0.40405,46653.0,46652.0,0.71896]
[1641381496613,0.50405,46653.0,46652.0,0.71896]
[1641381496816,0.51505,46653.0,46652.0,0.71896]
[1641381497766,0.41505,46653.0,46652.0,0.71896]
[1641381497967,0.011,46653.0,46652.0,1.01493441]
[1641381498167,0.80787712,46657.0,46652.0,0.71896]
[1641381498367,0.35405,46656.0,46653.0,0.0536029]
[1641381498769,0.35405,46656.0,46654.0,0.053601]
[1641381498968,0.02563353,46659.0,46654.0,0.107204]
[1641381499167,0.35405,46658.0,46654.0,0.107204]
[1641381499370,0.02563353,46659.0,46652.0,0.71896]
[1641381499968,0.0536,46658.0,46655.0,0.107195]
[1641381500167,0.0536,46658.0,46655.0,0.10719645]
[1641381500367,0.0536,46658.0,46655.0,0.05359945]
[1641381501412,0.0536,46658.0,46656.0,0.053601]
[1641381501608,0.35405,46657.0,46656.0,0.10720147]
[1641381501810,0.02563353,46659.0,46656.0,0.10720147]
[1641381502013,0.35405,46658.0,46656.0,0.10220147]
[1641381502211,0.35405,46658.0,46656.0,0.04860047]
[1641381502411,0.35405,46658.0,46657.0,0.0536]
[1641381502812,0.02563353,46659.0,46657.0,0.0536]
[1641381503012,0.35405,46658.0,46657.0,0.10719741]
[1641381503812,0.35405,46658.0,46654.0,0.16079657]
[1641381504013,0.02563353,46659.0,46654.0,0.16079657]
[1641381504014,0.053604,46657.0,46654.0,0.16079657]
[1641381504663,0.053604,46657.0,46654.0,0.10719357]
[1641381504860,0.053604,46657.0,46655.0,0.053602]
[1641381505661,0.053604,46657.0,46654.0,0.10719357]
[1641381505863,0.053604,46657.0,46653.0,0.05360592]
[1641381507164,2.37147966,46654.0,46653.0,0.05360592]
[1641381507364,2.72552966,46654.0,46652.0,0.71896]
[1641381507563,0.35405,46653.0,46652.0,0.71896]
[1641381507966,0.70787712,46658.0,46652.0,0.71896]
[1641381508164,0.80787712,46658.0,46652.0,0.71896]
[1641381508609,0.053605,46655.0,46652.0,0.7725673]
[1641381509411,0.70787712,46658.0,46652.0,0.82616201]
[1641381509609,0.76147712,46658.0,46654.0,0.0536]
[1641381509813,0.35405,46657.0,46654.0,0.0536]
[1641381510012,0.35405,46657.0,46654.0,0.05359972]
[1641381510613,0.35405,46657.0,46655.0,0.0536]
[1641381511614,0.73351065,46659.0,46655.0,0.0536]
[1641381511815,0.35405,46658.0,46656.0,0.05359941]
[1641381512263,0.407651,46658.0,46656.0,0.10720041]
[1641381514963,0.457651,46658.0,46656.0,0.10720041]
[1641381516007,0.407651,46658.0,46656.0,0.10720041]
[1641381518408,0.507651,46658.0,46656.0,0.053601]
[1641381519012,0.02563353,46659.0,46657.0,1.14045026]
[1641381519210,0.02563353,46659.0,46658.0,0.7512767]
[1641381519413,0.02563353,46659.0,46658.0,0.7713467]
[1641381519865,0.02563353,46659.0,46658.0,0.823658]
[1641381520267,0.02563353,46659.0,46658.0,0.475708]
[1641381520462,0.02563353,46659.0,46658.0,0.40205]
[1641381520865,0.02563353,46659.0,46658.0,0.35605]
[1641381521262,0.02563353,46659.0,46658.0,0.002]
[1641381522266,0.02563353,46659.0,46657.0,0.16076718]
[1641381522870,0.03863353,46659.0,46657.0,0.16076718]
[1641381524112,0.02563353,46659.0,46657.0,0.16076718]
[1641381525013,0.03663353,46659.0,46657.0,0.16076718]
[1641381526311,0.02563353,46659.0,46657.0,0.16076718]
[1641381526715,0.02563353,46659.0,46652.0,0.826155]
[1641381526716,0.02563353,46659.0,46652.0,0.71896]
[1641381526913,0.02563353,46659.0,46652.0,0.77256754]
[1641381526914,0.03763353,46659.0,46652.0,0.77256754]
[1641381527164,0.03763353,46659.0,46652.0,0.71896]
[1641381527760,0.053605,46655.0,46652.0,0.71896]
[1641381527964,0.30231928,46654.0,46652.0,0.77256429]
[1641381528961,0.31531928,46654.0,46652.0,0.77256429]
[1641381529362,0.013,46654.0,46652.0,0.77256429]
[1641381530164,0.37218146,46657.0,46654.0,0.053602]
[1641381530364,0.35405,46656.0,46654.0,0.053602]
[1641381530569,0.28532829,46655.0,46654.0,0.053602]
[1641381531412,0.015,46656.0,46654.0,0.053602]
[1641381531613,0.068603,46656.0,46654.0,0.053602]
[1641381532211,0.053603,46656.0,46654.0,0.053602]
[1641381533014,0.067603,46656.0,46654.0,0.053602]
[1641381533817,0.014,46656.0,46654.0,0.107203]
[1641381534962,0.014,46656.0,46654.0,0.053602]
[1641381534963,0.081603,46656.0,46654.0,0.053602]
[1641381535361,0.028,46656.0,46654.0,0.053602]
[1641381535563,0.73587712,46656.0,46654.0,0.053602]
[1641381535962,0.73587712,46656.0,46654.0,0.107203]
[1641381536262,0.70787712,46657.0,46654.0,0.107203]
[1641381536662,0.70787712,46657.0,46655.0,0.0536]
[1641381537064,0.72187712,46657.0,46655.0,0.0536]
[1641381538164,0.70787712,46657.0,46655.0,0.0536]
[1641381538421,0.70787712,46658.0,46654.0,0.16080225]
[1641381538619,0.1,46658.0,46654.0,0.16080225]
[1641381538821,0.1,46658.0,46655.0,0.05360078]
[1641381539017,0.114,46658.0,46655.0,0.05360078]
[1641381539917,0.067601,46658.0,46655.0,0.05360078]
[1641381540117,0.067601,46658.0,46655.0,0.10720178]
[1641381540317,0.067601,46658.0,46655.0,0.05360078]
[1641381540718,0.053601,46658.0,46655.0,0.05360078]
[1641381540923,0.067601,46658.0,46655.0,0.05360078]
[1641381542163,0.053601,46658.0,46655.0,0.05360078]
[1641381543066,0.068601,46658.0,46655.0,0.05360078]
[1641381543665,0.068601,46658.0,46655.0,0.10720078]
[1641381544064,0.068601,46658.0,46655.0,0.05360078]
[1641381544264,0.015,46658.0,46655.0,0.05360078]
[1641381544466,0.02563353,46659.0,46655.0,0.0536]
[1641381544667,0.02563353,46659.0,46656.0,0.35605658]
[1641381544866,0.03963353,46659.0,46656.0,0.0536]
[1641381545913,0.03963353,46659.0,46657.0,0.40229666]
[1641381546221,0.02563353,46659.0,46657.0,0.107193]
[1641381546713,0.02563353,46659.0,46658.0,0.3019798]
[1641381546913,0.03763353,46659.0,46658.0,0.3019798]
[1641381548114,0.02563353,46659.0,46658.0,0.3019798]
[1641381548513,0.02563353,46659.0,46657.0,0.107193]
[1641381548716,0.02563353,46659.0,46658.0,0.29548494]
[1641381548914,0.03763353,46659.0,46658.0,0.29548494]
[1641381550768,0.02563353,46659.0,46658.0,0.29548494]
[1641381550968,0.03763353,46659.0,46658.0,0.29548494]
[1641381551768,0.03763353,46659.0,46657.0,0.16078812]
[1641381552370,0.02563353,46659.0,46657.0,0.16078812]
[1641381552969,0.03863353,46659.0,46657.0,0.16078812]
[1641381554219,0.02563353,46659.0,46657.0,0.16078812]
[1641381555019,0.03763353,46659.0,46657.0,0.16078812]
[1641381556222,0.02563353,46659.0,46657.0,0.16078812]
[1641381557022,0.03963353,46659.0,46657.0,0.16078812]
[1641381558266,0.02563353,46659.0,46657.0,0.16078812]
[1641381559065,0.03863353,46659.0,46657.0,0.16078812]
[1641381560266,0.02563353,46659.0,46657.0,0.16078812]
[1641381561016,0.03863353,46659.0,46657.0,0.16078812]
[1641381562214,0.02563353,46659.0,46657.0,0.16078812]
[1641381563013,0.03963353,46659.0,46657.0,0.16078812]
[1641381563814,0.03963353,46659.0,46658.0,0.29320254]
[1641381564214,0.02563353,46659.0,46657.0,0.16078812]
[1641381565078,0.03963353,46659.0,46657.0,0.16078812]
[1641381566282,0.02563353,46659.0,46657.0,0.16078812]
[1641381567087,0.03963353,46659.0,46657.0,0.15578812]
[1641381568285,0.02563353,46659.0,46657.0,0.15578812]
[1641381569119,0.05563353,46659.0,46657.0,0.15578812]
[1641381570218,0.02563353,46659.0,46657.0,0.15578812]
[1641381571021,0.03963353,46659.0,46657.0,0.15578812]
[1641381572269,0.02563353,46659.0,46657.0,0.15578812]
[1641381573068,0.03963353,46659.0,46657.0,0.15578812]
[1641381574270,0.02563353,46659.0,46657.0,0.15578812]
[1641381575070,0.03863353,46659.0,46657.0,0.15578812]
[1641381576319,0.02563353,46659.0,46657.0,0.15578812]
[1641381576517,0.35405,46658.0,46657.0,0.048596]
[1641381577117,0.36605,46658.0,46657.0,0.048596]
[1641381577521,0.012,46658.0,46657.0,0.048596]
[1641381578321,0.07923353,46659.0,46657.0,0.048596]
[1641381578522,0.35405,46658.0,46657.0,0.048596]
[1641381578721,0.02563353,46659.0,46657.0,0.048596]
[1641381578922,0.02563353,46659.0,46657.0,0.1021943]
[1641381579122,0.013,46658.0,46657.0,0.1021943]
[1641381580370,0.02563353,46659.0,46657.0,0.1021943]
[1641381580671,0.02563353,46659.0,46657.0,0.048596]
[1641381581074,0.03863353,46659.0,46657.0,0.048596]
[1641381581970,0.03863353,46659.0,46657.0,0.10219442]
[1641381582171,0.03863353,46659.0,46657.0,0.15579242]
[1641381582373,0.02563353,46659.0,46657.0,0.15579242]
[1641381582572,0.02563353,46659.0,46657.0,0.102194]
[1641381582974,0.03863353,46659.0,46657.0,0.102194]
[1641381584022,0.03863353,46659.0,46657.0,0.1557892]
[1641381584225,0.02563353,46659.0,46657.0,0.1557892]
[1641381585023,0.03863353,46659.0,46657.0,0.1557892]
[1641381586425,0.02563353,46659.0,46657.0,0.45829711]
[1641381587025,0.03963353,46659.0,46657.0,0.45829711]
[1641381588273,0.02563353,46659.0,46657.0,0.45829711]
[1641381588674,0.02563353,46659.0,46658.0,0.29541508]
[1641381588876,0.02563353,46659.0,46657.0,0.1557892]
[1641381589077,0.03863353,46659.0,46657.0,0.1557892]
[1641381589776,0.03863353,46659.0,46657.0,0.2093792]
[1641381589976,0.03863353,46659.0,46658.0,0.35405]
[1641381590376,0.02563353,46659.0,46658.0,0.35405]
[1641381590582,0.02563353,46659.0,46657.0,0.1557892]
[1641381591021,0.08263353,46659.0,46657.0,0.1557892]
[1641381592220,0.02563353,46659.0,46657.0,0.1557892]
[1641381593022,0.04463353,46659.0,46657.0,0.1557892]
[1641381594426,0.02563353,46659.0,46657.0,0.1557892]
[1641381595071,0.05463353,46659.0,46657.0,0.1557892]
[1641381596274,0.02563353,46659.0,46657.0,0.1557892]
[1641381596873,0.02563353,46659.0,46658.0,0.30032655]
[1641381597073,0.04163353,46659.0,46658.0,0.30032655]
[1641381597674,0.04163353,46659.0,46658.0,0.65438455]
[1641381598921,0.02563353,46659.0,46658.0,0.65438455]
[1641381599123,0.04063353,46659.0,46658.0,0.354058]
[1641381599925,0.04063353,46659.0,46657.0,0.1021912]
[1641381600330,0.02563353,46659.0,46657.0,0.048596]
[1641381600526,0.07923253,46659.0,46657.0,0.048596]
[1641381601028,0.09023253,46659.0,46657.0,0.048596]
[1641381602176,0.03663353,46659.0,46657.0,0.048596]
[1641381602382,0.02563353,46659.0,46657.0,0.048596]
[1641381602978,0.02563353,46659.0,46657.0,0.06039973]
[1641381603178,0.03863353,46659.0,46657.0,0.11399313]
[1641381603581,0.03863353,46659.0,46658.0,0.354058]
[1641381604378,0.02563353,46659.0,46658.0,0.354058]
[1641381604779,0.02563353,46659.0,46658.0,0.67332684]
[1641381604982,0.02563353,46659.0,46658.0,0.77332684]
[1641381605180,0.06863353,46659.0,46658.0,0.954058]
[1641381606035,0.06863353,46659.0,46658.0,0.454058]
[1641381606431,0.06863353,46659.0,46658.0,0.354058]
[1641381607031,0.02563353,46659.0,46658.0,0.354058]
[1641381607232,0.02563353,46659.0,46657.0,0.06040213]
[1641381608231,0.02563353,46659.0,46658.0,1.13052192]
[1641381608431,0.02563353,46659.0,46658.0,0.65052192]
[1641381609132,0.02563353,46659.0,46658.0,0.98252192]
[1641381609777,0.02563353,46659.0,46658.0,0.65252192]
[1641381610378,0.02563353,46659.0,46658.0,0.354058]
[1641381610980,0.02063353,46659.0,46658.0,0.354058]
[1641381611680,0.02063353,46659.0,46658.0,0.404058]
[1641381612481,0.02063353,46659.0,46658.0,0.05]
[1641381613727,0.02063353,46659.0,46657.0,0.06040213]
[1641381614131,0.02063353,46659.0,46658.0,0.354058]
[1641381615332,0.02063353,46659.0,46658.0,0.64891919]
[1641381616429,0.02063353,46659.0,46658.0,0.69891919]
[1641381616633,0.02063353,46659.0,46658.0,0.404058]
[1641381617030,0.02063353,46659.0,46658.0,0.784058]
[1641381617276,0.02063353,46659.0,46658.0,0.413058]
[1641381618477,0.02063353,46659.0,46658.0,0.05]
[1641381619179,0.02063353,46659.0,46658.0,0.464]
[1641381619577,0.02063353,46659.0,46658.0,0.818058]
[1641381620376,0.02063353,46659.0,46658.0,0.814058]
[1641381620778,0.02063353,46659.0,46658.0,0.354058]
[1641381621225,0.02063353,46659.0,46657.0,0.06040213]
[1641381621628,0.02063353,46659.0,46657.0,0.00680873]
[1641381621828,0.07423053,46659.0,46657.0,0.00680873]
[1641381622026,0.02063353,46659.0,46657.0,0.00680873]
[1641381624127,0.07422953,46659.0,46657.0,0.00680873]
[1641381624771,0.02063353,46659.0,46657.0,0.06040321]
[1641381625773,0.02063353,46659.0,46657.0,0.00680873]
[1641381628275,0.07423053,46659.0,46657.0,0.00680873]
[1641381628532,0.02063353,46659.0,46657.0,0.00680873]
[1641381629733,0.02063353,46659.0,46658.0,0.354058]
[1641381630034,0.02063353,46659.0,46657.0,0.00680873]
[1641381630238,0.04925552,46658.0,46652.0,0.71896]
[1641381630438,0.00124596,46653.0,46652.0,0.71896]
[1641381630636,0.63924596,46653.0,46652.0,0.71896]
[1641381630835,0.68924596,46653.0,46652.0,0.71896]
[1641381631035,1.08137285,46653.0,46652.0,0.71896]
[1641381631236,1.74281753,46653.0,46652.0,0.71896]
[1641381631438,0.91430064,46653.0,46652.0,0.71896]
[1641381632477,1.61502233,46653.0,46652.0,0.71896]
[1641381632676,1.90596975,46653.0,46652.0,0.71896]
[1641381632978,1.85796975,46653.0,46652.0,0.71896]
[1641381633178,1.86896975,46653.0,46652.0,0.71896]
[1641381633678,1.26896975,46653.0,46652.0,0.71896]
[1641381633977,2.04333736,46653.0,46652.0,0.71896]
[1641381634683,2.08233736,46653.0,46652.0,0.71896]
[1641381635078,2.18562103,46653.0,46652.0,0.71896]
[1641381635279,2.24562103,46653.0,46652.0,0.71896]
[1641381636434,2.23562103,46653.0,46652.0,0.71896]
[1641381637034,2.73562103,46653.0,46652.0,0.71896]
[1641381637236,2.74662103,46653.0,46652.0,0.71896]
[1641381638036,1.93161567,46653.0,46652.0,0.71896]
[1641381638437,2.74662103,46653.0,46652.0,0.71896]
[1641381639036,1.87061567,46653.0,46652.0,0.71896]
[1641381639235,1.88061567,46653.0,46652.0,0.71896]
[1641381640881,1.53966825,46653.0,46652.0,0.71896]
[1641381641284,1.55066825,46653.0,46652.0,0.71896]
[1641381641481,1.64866825,46653.0,46652.0,0.71896]
[1641381641682,2.53844643,46653.0,46652.0,0.71896]
[1641381641881,2.08844643,46653.0,46652.0,0.71896]
[1641381642081,2.08844643,46653.0,46641.0,0.01237748]
[1641381642082,0.053622,46647.0,46641.0,0.01237748]
[1641381642387,0.95942391,46642.0,46641.0,0.01237748]
[1641381642584,1.97369632,46642.0,46641.0,0.01237748]
[1641381642783,2.37777432,46642.0,46641.0,0.01237748]
[1641381642981,1.56276896,46642.0,46641.0,0.01237748]
[1641381643182,2.77598791,46642.0,46641.0,0.01237748]
[1641381644237,2.77598791,46642.0,46640.0,0.00011]
[1641381644438,0.354078,46641.0,46640.0,0.00011]
[1641381644637,0.502078,46641.0,46640.0,0.00011]
[1641381644839,1.71529695,46641.0,46640.0,0.00011]
[1641381645238,1.72729695,46641.0,46640.0,0.00011]
[1641381646444,1.71529695,46641.0,46640.0,0.00011]
[1641381647379,1.72629695,46641.0,46640.0,0.00011]
[1641381648580,1.71529695,46641.0,46640.0,0.00011]
[1641381648779,1.71529695,46641.0,46634.0,0.99966]
[1641381648780,0.053624,46639.0,46634.0,0.99966]
[1641381648980,0.4077,46638.0,46634.0,0.99966]
[1641381650080,0.00123149,46636.0,46634.0,0.99966]
[1641381650481,0.59267804,46636.0,46634.0,0.99966]
[1641381650682,0.354078,46635.0,46634.0,0.99966]
[1641381651328,0.366078,46635.0,46634.0,0.99966]
[1641381652231,0.64975728,46635.0,46634.0,0.99966]
[1641381652629,0.63775728,46635.0,46634.0,0.99966]
[1641381653332,0.64875728,46635.0,46630.0,0.00011]
[1641381653932,0.28012035,46634.0,46630.0,0.053735]
[1641381654132,0.63419835,46634.0,46630.0,0.053735]
[1641381654431,0.63419835,46634.0,46630.0,0.00011]
[1641381655279,0.64419835,46634.0,46630.0,0.00011]
[1641381656082,0.364078,46634.0,46630.0,0.00011]
[1641381656681,0.354078,46634.0,46630.0,0.00011]
[1641381656983,0.64900449,46634.0,46630.0,0.00011]
[1641381657281,0.65900449,46634.0,46630.0,0.00011]
[1641381658535,0.64900449,46634.0,46630.0,0.00011]
[1641381659232,0.65900449,46634.0,46630.0,0.00011]
[1641381660235,0.65900449,46634.0,46630.0,0.053735]
[1641381660433,0.65900449,46634.0,46630.0,0.00011]
[1641381661234,0.66000449,46634.0,46630.0,0.00011]
[1641381661635,0.365078,46634.0,46630.0,0.00011]
[1641381661836,0.365078,46634.0,46630.0,0.053735]
[1641381662484,0.365078,46634.0,46630.0,0.00011]
[1641381662485,0.354078,46634.0,46630.0,0.00011]
[1641381662685,0.64499097,46634.0,46630.0,0.00011]
[1641381663290,0.65499097,46634.0,46630.0,0.00011]
[1641381664588,0.64499097,46634.0,46630.0,0.00011]
[1641381664790,0.74499097,46634.0,46630.0,0.00011]
[1641381664994,0.79299097,46634.0,46630.0,0.00011]
[1641381665390,0.514078,46634.0,46630.0,0.00011]
[1641381666633,0.502078,46634.0,46630.0,0.00011]
[1641381667239,0.513078,46634.0,46630.0,0.00011]
[1641381667635,1.35011508,46634.0,46630.0,0.00011]
[1641381668638,1.33911508,46634.0,46630.0,0.00011]
[1641381669136,2.55270575,46634.0,46630.0,0.00011]
[1641381669340,2.56370575,46634.0,46630.0,0.00011]
[1641381670581,2.55270575,46634.0,46630.0,0.00011]
[1641381671382,2.56370575,46634.0,46630.0,0.00011]
[1641381672381,2.56435967,46634.0,46630.0,0.00011]
[1641381672586,2.56435967,46634.0,46618.0,0.00022]
[1641381672587,0.35,46632.0,46618.0,0.00022]
[1641381672782,0.35,46632.0,46624.0,0.00011]
[1641381672783,0.5998,46625.0,46624.0,0.00011]
[1641381672982,1.6975747,46625.0,46624.0,0.00011]
[1641381673181,1.37869184,46625.0,46624.0,0.00011]
[1641381673434,1.38969184,46625.0,46624.0,0.00011]
[1641381673742,0.354078,46621.0,46611.0,0.00444]
[1641381673936,0.354078,46621.0,46610.0,0.35561845]
[1641381673937,1.031945,46617.0,46610.0,0.35561845]
[1641381674138,0.25261544,46611.0,46608.0,0.00055]
[1641381674335,1.67688286,46610.0,46608.0,0.00055]
[1641381674536,1.097512,46608.0,46607.0,0.97598]
[1641381674735,1.097512,46608.0,46604.0,0.00044]
[1641381674736,0.354077,46606.0,46604.0,0.00044]
[1641381675036,1.202078,46605.0,46604.0,0.00044]
[1641381675435,1.802078,46605.0,46604.0,0.00044]
[1641381675935,1.002078,46605.0,46604.0,0.00044]
[1641381676935,0.51,46604.0,46601.0,0.00065]
[1641381677193,0.85528495,46602.0,46601.0,0.00065]
[1641381677392,0.90328495,46602.0,46601.0,0.00065]
[1641381677594,1.00328495,46602.0,46601.0,0.00065]
[1641381677793,1.25956865,46602.0,46601.0,0.00065]
[1641381678395,1.96316657,46602.0,46601.0,0.00065]
[1641381679395,1.27056865,46602.0,46601.0,0.00065]
[1641381679595,1.61204843,46602.0,46601.0,0.00065]
[1641381680398,1.64121843,46602.0,46601.0,0.00065]
[1641381680596,1.63021843,46602.0,46601.0,0.00065]
[1641381680796,1.28873865,46602.0,46601.0,0.00065]
[1641381681239,1.80873865,46602.0,46601.0,0.00065]
[1641381681544,3.03398374,46602.0,46601.0,0.00065]
[1641381681738,2.63398374,46602.0,46601.0,0.00065]
[1641381682337,2.51398374,46602.0,46601.0,0.00065]
[1641381682737,2.50298374,46602.0,46601.0,0.00065]
[1641381683345,2.48481374,46602.0,46601.0,0.00065]
[1641381684143,2.48481374,46602.0,46601.0,0.00073018]
[1641381684540,2.09045465,46602.0,46601.0,0.00073018]
[1641381684994,1.27056865,46602.0,46601.0,0.00073018]
[1641381685194,5.27056865,46602.0,46601.0,0.00073018]
[1641381685395,5.28156865,46602.0,46601.0,0.00073018]
[1641381685997,5.98467864,46602.0,46601.0,0.00073018]
[1641381686394,5.28156865,46602.0,46601.0,0.00073018]
[1641381686595,5.25956865,46602.0,46601.0,0.00073018]
[1641381687396,5.27056865,46602.0,46601.0,0.00073018]
[1641381687796,5.27056865,46602.0,46596.0,0.00055]
[1641381687797,5.30078865,46602.0,46596.0,0.00055]
[1641381687997,2.6154674,46601.0,46600.0,0.09945]
[1641381688197,1.494078,46600.0,46598.0,0.00033]
[1641381688439,2.10167459,46599.0,46598.0,0.00033]
[1641381688637,2.20167459,46599.0,46598.0,0.00033]
[1641381688837,1.31,46598.0,46597.0,0.00022]
[1641381689037,1.522078,46598.0,46597.0,0.00022]
[1641381689237,2.022078,46598.0,46597.0,0.00022]
[1641381689441,2.033078,46598.0,46597.0,0.00022]
[1641381690337,2.033078,46598.0,46592.0,0.00044]
[1641381690540,2.27252734,46595.0,46594.0,0.00515629]
[1641381690741,2.33658163,46595.0,46594.0,0.00515629]
[1641381690941,2.43658163,46595.0,46594.0,0.00515629]
[1641381691340,3.04174733,46595.0,46594.0,0.00515629]
[1641381691540,2.99374733,46595.0,46594.0,0.00515629]
[1641381692190,1.86374733,46595.0,46594.0,0.00515629]
[1641381692590,1.85274733,46595.0,46594.0,0.00515629]
[1641381693193,1.88594733,46595.0,46594.0,0.00485629]
[1641381693392,1.89794733,46595.0,46594.0,0.00455629]
[1641381694690,1.88594733,46595.0,46594.0,0.00455629]
[1641381694892,1.88659491,46595.0,46594.0,0.00455629]
[1641381695090,1.88659491,46595.0,46594.0,0.00463504]
[1641381695291,1.104078,46594.0,46592.0,0.00040504]
[1641381695493,0.854078,46593.0,46592.0,0.00040504]
[1641381695691,0.954078,46593.0,46592.0,0.00040504]
[1641381695937,1.37179589,46593.0,46592.0,0.00040504]
[1641381696335,0.954078,46593.0,46592.0,0.00040504]
[1641381697038,1.324078,46593.0,46592.0,0.00040504]
[1641381697237,1.372078,46593.0,46592.0,0.00040504]
[1641381697438,1.014078,46593.0,46592.0,0.00040504]
[1641381698036,1.009548,46593.0,46592.0,0.00040504]
[1641381698336,1.007278,46593.0,46592.0,0.00040504]
[1641381698836,2.20878015,46593.0,46592.0,0.00040504]
[1641381699436,2.22178015,46593.0,46592.0,0.00040504]
[1641381699691,2.22242773,46593.0,46592.0,0.00040504]
[1641381699888,1.017511,46591.0,46590.0,0.00017504]
[1641381700088,1.754541,46591.0,46590.0,0.00017504]
[1641381700993,2.04919315,46591.0,46590.0,0.00017504]
[1641381701391,2.04919315,46591.0,46582.0,0.00044]
[1641381701592,2.04919315,46591.0,46581.0,0.01946691]
[1641381701593,0.553686,46588.0,46581.0,0.01946691]
[1641381701791,0.053689,46586.0,46581.0,0.01946691]
[1641381701990,0.354316,46585.0,46581.0,0.01946691]
[1641381702194,0.354316,46585.0,46579.0,0.00033]
[1641381702390,0.34,46584.0,46576.0,0.30087993]
[1641381702593,1.08401825,46578.0,46576.0,0.00022]
[1641381702792,0.69891133,46578.0,46576.0,0.00022]
[1641381703437,0.354316,46577.0,46576.0,0.00022]
[1641381703639,0.34559605,46577.0,46576.0,0.29022]
[1641381703838,0.34559605,46577.0,46576.0,0.00022]
[1641381704236,0.33890825,46578.0,46576.0,0.00022]
[1641381704637,0.32990825,46578.0,46576.0,0.00022]
[1641381705040,0.714383,46578.0,46576.0,0.00022]
[1641381705439,0.723383,46578.0,46576.0,0.00022]
[1641381705838,0.723383,46578.0,46577.0,8.625e-05]
[1641381706039,0.33890825,46578.0,46577.0,8.625e-05]
[1641381706643,0.32990825,46578.0,46577.0,8.625e-05]